Workbook

Sheet 7-10
A1: СОГЛАСОВАНО | O1: УТВЕРЖДЕНО
O2: ООО "КРЕПЫШ"
O3: _______________________Ефремов В.Ю.
A6: Меню для организации 2-х разового питания детей возрасте от 7 до 10 лет в образовательных учреждениях Мензелинского района РТ на 1 полугодие 2024-2025 учебный год.
A8: 1 день, 1 неделя
A9: № рецептуры | B9: Прием пищи, наименование блюда | C9: Масса | D9: Пищевые вещества | G9: Энергетическая ценность | H9: Витамины | M9: Минеральные вещества
D10: Белки | E10: Жиры | F10: Углеводы | H10: B1 | I10: B2 | J10: A | K10: D | L10: C | M10: Na | N10: K | O10: Ca | P10: Mg | Q10: P | R10: Fe | S10: I | T10: Se | U10: F
C11: г | D11: г | E11: г | F11: г | G11: ккал | H11: мг | I11: мг | J11: мкг рет.экв | K11: мкг | L11: мг | M11: мг | N11: мг | O11: мг | P11: мг | Q11: мг | R11: мг | S11: мкг | T11: мкг | U11: мкг
B12: Понедельник, 1 неделя
B13: Завтрак | C13: 7-10
A14: 54-13з-2020 | B14: Салат из свеклы отварной с растительным маслом | C14: 60 | D14: 0.8 | E14: 2.7 | F14: 4.6 | G14: 45.6 | H14: 0.01 | I14: 0.02 | J14: 0.68 | K14: 0 | L14: 2.28 | M14: 78.77 | N14: 136.27 | O14: 19.21 | P14: 10.95 | Q14: 21.51 | R14: 0.7 | S14: 11.99 | T14: 0.35 | U14: 11.4
A15: 54-11г-2020 | B15: Картофельное пюре | C15: 150 | D15: 3.1 | E15: 5.3 | F15: 19.8 | G15: 139.4 | H15: 0.12 | I15: 0.11 | J15: 23.8 | K15: 0.09 | L15: 10.2 | M15: 161.78 | N15: 624.83 | O15: 39.49 | P15: 28.23 | Q15: 84.47 | R15: 1.03 | S15: 28.46 | T15: 0.78 | U15: 42.79
A16: № Т/К 272 | B16: Котлета рубленная из говядины с соусом | C16: 65/35 | D16: 9.3 | E16: 7.1 | F16: 11.8 | G16: 148.6 | H16: 0 | I16: 0 | J16: 0 | K16: 0 | L16: 1.4 | M16: 0 | N16: 0 | O16: 16 | P16: 19.2 | Q16: 97 | R16: 1.7 | S16: 0 | T16: 0 | U16: 0
A17: 54-2гн-2020 | B17: Чай с сахаром | C17: 200 | D17: 0.2 | E17: 0 | F17: 6.4 | G17: 26.8 | H17: 0 | I17: 0.01 | J17: 0.3 | K17: 0 | L17: 0.04 | M17: 0.68 | N17: 20.76 | O17: 66.08 | P17: 3.83 | Q17: 7.18 | R17: 0.73 | S17: 0 | T17: 0 | U17: 0
A18: Пром. | B18: Хлеб пшеничный | C18: 20 | D18: 1.52 | E18: 0.16 | F18: 9.84 | G18: 46.9 | H18: 0.02 | I18: 0.01 | J18: 0 | K18: 0 | L18: 0 | M18: 100 | N18: 19 | O18: 4 | P18: 3 | Q18: 13 | R18: 0.2 | S18: 0.64 | T18: 1.2 | U18: 2.9
A19: Пром. | B19: Хлеб ржаной | C19: 20 | D19: 1.3 | E19: 0.2 | F19: 6.7 | G19: 34.2 | H19: 0.04 | I19: 0.02 | J19: 0 | K19: 0 | L19: 0 | M19: 122 | N19: 49 | O19: 7 | P19: 9.4 | Q19: 31.6 | R19: 0.78 | S19: 0 | T19: 6.18 | U19: 0
B20: Итого за завтрак | C20: 550 | D20: =SUM(D14:D19) -> 16.22 | E20: =SUM(E14:E19) -> 15.46 | F20: 59.14 | G20: 441.5 | H20: 0.19 | I20: 0.17 | J20: 24.78 | K20: 0.09 | L20: 13.92 | M20: 463.23 | N20: 849.86 | O20: 151.78 | P20: 74.61 | Q20: 254.76 | R20: 5.14 | S20: 41.09 | T20: 8.51 | U20: 57.09
B21: Обед | C21: 7-10
A22: 54-7з-2020 | B22: Салат из белокочанной капусты с растительным маслом | C22: 60 | D22: 1.5 | E22: 3.1 | F22: 6.2 | G22: 85.8 | H22: 0.03 | I22: 0.04 | J22: 122.25 | K22: 0 | L22: 34.78 | M22: 88.69 | N22: 247.73 | O22: 40.39 | P22: 15.18 | Q22: 30.31 | R22: 0.55 | S22: 10.73 | T22: 0.26 | U22: 12.66
A23: 100 | B23: Суп картофельный с вермишелью | C23: 200 | D23: 9.2 | E23: 7.85 | F23: 26.9 | G23: 194.4 | H23: 0.1 | I23: 0 | J23: 0.2 | K23: 0 | L23: 5.3 | M23: 0 | N23: 0 | O23: 19.2 | P23: 18.7 | Q23: 46.1 | R23: 0.9 | S23: 0 | T23: 0 | U23: 0
A24: Т/к №102 | B24: Оладьи П/Ф (35 гр) 2шт | C24: 70 | D24: 5.06 | E24: 6.44 | F24: 29.51 | G24: 206.64 | H24: 0.09 | I24: 0 | J24: 0.01 | K24: 0 | L24: 0.68 | M24: 0 | N24: 0 | O24: 55.22 | P24: 12.31 | Q24: 72.66 | R24: 0.9 | S24: 0 | T24: 0 | U24: 0
A25: 54-4гн-2020 | B25: Чай с молоком и сахаром | C25: 200 | D25: 1.6 | E25: 1.1 | F25: 8.6 | G25: 50.9 | H25: 0.01 | I25: 0.07 | J25: 6.9 | K25: 0 | L25: 0.3 | M25: 19.68 | N25: 81.35 | O25: 103.48 | P25: 9.92 | Q25: 46.33 | R25: 0.78 | S25: 4.5 | T25: 0.88 | U25: 10
A26: Пром. | B26: Хлеб ржаной | C26: 20 | D26: 1.3 | E26: 0.2 | F26: 6.7 | G26: 34.2 | H26: 0.04 | I26: 0.02 | J26: 0 | K26: 0 | L26: 0 | M26: 122 | N26: 49 | O26: 7 | P26: 9.4 | Q26: 31.6 | R26: 0.78 | S26: 0 | T26: 6.18 | U26: 0
B27: Итого за обед | C27: =SUM(C22:C26) -> 550 | D27: =SUM(D22:D26) -> 18.66 | E27: 18.69 | F27: 77.91 | G27: 571.94 | H27: 0.27 | I27: 0.13 | J27: 129.36 | K27: 0 | L27: 41.06 | M27: 230.37 | N27: 378.08 | O27: 225.29 | P27: 65.51 | Q27: 227 | R27: 3.91 | S27: 15.23 | T27: 7.32 | U27: 22.66
B28: Итого за день | C28: =C27+C20 -> 1100 | D28: =D27+D20 -> 34.88 | E28: 34.15 | F28: 137.05 | G28: 1013.44 | H28: 0.46 | I28: 0.3 | J28: 154.14 | K28: 0.09 | L28: 54.98 | M28: 693.6 | N28: 1227.94 | O28: 377.07 | P28: 140.12 | Q28: 481.76 | R28: 9.05 | S28: 56.32 | T28: 15.83 | U28: 79.75
A31: 2 день, 1 неделя
A32: № рецептуры | B32: Прием пищи, наименование блюда | C32: Масса | D32: Пищевые вещества | G32: Энергетическая ценность | H32: Витамины | M32: Минеральные вещества
D33: Белки | E33: Жиры | F33: Углеводы | H33: B1 | I33: B2 | J33: A | K33: D | L33: C | M33: Na | N33: K | O33: Ca | P33: Mg | Q33: P | R33: Fe | S33: I | T33: Se | U33: F
C34: г | D34: г | E34: г | F34: г | G34: ккал | H34: мг | I34: мг | J34: мкг рет.экв | K34: мкг | L34: мг | M34: мг | N34: мг | O34: мг | P34: мг | Q34: мг | R34: мг | S34: мкг | T34: мкг | U34: мкг
B35: Вторник, 1 неделя
B36: Завтрак | C36: 7-10
A37: Пром. | B37: Сушка простая | C37: 13 | D37: 1.42 | E37: 0.17 | F37: 8.94 | G37: 43 | H37: 0.03 | I37: 0.01 | J37: 0 | K37: 0 | L37: 0 | M37: 79 | N37: 24 | O37: 4 | P37: 6 | Q37: 16 | R37: 0.4 | S37: 0 | T37: 0 | U37: 0
A38: № Т/к 67 | B38: Щи из свежей капусты с картофелем | C38: 200 | D38: 1.5 | E38: 4 | F38: 7.4 | G38: 7.2 | H38: 0 | I38: 0 | J38: 0.2 | K38: 0 | L38: 10 | M38: 0 | N38: 0 | O38: 33.3 | P38: 17.5 | Q38: 34.2 | R38: 0.8 | S38: 0 | T38: 0 | U38: 0
A39: № Т/к 438 | B39: Напиток яблочный | C39: 200 | D39: 0.1 | E39: 0.1 | F39: 13.9 | G39: 57.8 | H39: 0 | I39: 0 | J39: 0 | K39: 0 | L39: 1 | M39: 0 | N39: 0 | O39: 12.3 | P39: 3.7 | Q39: 2.4 | R39: 0.5 | S39: 0 | T39: 0 | U39: 0
A40: Пром. | B40: Хлеб пшеничный | C40: 20 | D40: 1.52 | E40: 0.16 | F40: 9.84 | G40: 46.9 | H40: 0.02 | I40: 0.01 | J40: 0 | K40: 0 | L40: 0 | M40: 100 | N40: 19 | O40: 4 | P40: 3 | Q40: 13 | R40: 0.2 | S40: 0.64 | T40: 1.2 | U40: 2.9
A41: Пром. | B41: Хлеб ржаной | C41: 20 | D41: 1.3 | E41: 0.2 | F41: 6.7 | G41: 34.2 | H41: 0.04 | I41: 0.02 | J41: 0 | K41: 0 | L41: 0 | M41: 122 | N41: 49 | O41: 7 | P41: 9.4 | Q41: 31.6 | R41: 0.78 | S41: 0 | T41: 6.18 | U41: 0
B42: Итого за завтрак | C42: =SUM(C37:C41) -> 453 | D42: =SUM(D37:D41) -> 5.84 | E42: =SUM(E37:E41) -> 4.63 | F42: 46.78 | G42: 189.1 | H42: 0.09 | I42: 0.04 | J42: 0.2 | K42: 0 | L42: 11 | M42: 301 | N42: 92 | O42: 60.6 | P42: 39.6 | Q42: 97.2 | R42: 2.68 | S42: 0.64 | T42: 7.38 | U42: 2.9
B43: Обед | C43: 7-10
A44: №Т/К 41 | B44: Салат из моркови с сахаром и растительным маслом | C44: 60 | D44: 0.5 | E44: 6.1 | F44: 4.3 | G44: 74.3 | H44: 0.03 | I44: 0.03 | J44: 732.9 | K44: 0 | L44: 3.63 | M44: 89.79 | N44: 123.26 | O44: 13.5 | P44: 15.57 | Q44: 22.38 | R44: 0.66 | S44: 10.19 | T44: 0.09 | U44: 21.57
A45: 54-6г-2020 | B45: Рис отварной | C45: 150 | D45: 3.6 | E45: 3.6 | F45: 36.4 | G45: 195.5 | H45: 0.03 | I45: 0.02 | J45: 18.36 | K45: 0.09 | L45: 0 | M45: 152.8 | N45: 46.55 | O45: 106.65 | P45: 23.59 | Q45: 72.57 | R45: 0.49 | S45: 20.76 | T45: 7.24 | U45: 27.19
A46: №Т/К 272 | B46: Котлета мясная с соусом | C46: 65/35 | D46: 11.4 | E46: 9.3 | F46: 12.4 | G46: 179.2 | H46: 0 | I46: 0 | J46: 0.1 | K46: 0 | L46: 1.8 | M46: 0 | N46: 0 | O46: 18.9 | P46: 22.1 | Q46: 115.5 | R46: 1.9 | S46: 0 | T46: 0 | U46: 0
A47: №Т/К 436 | B47: Напиток апельсиновый | C47: 200 | D47: 0.2 | E47: 0 | F47: 13 | G47: 53.5 | H47: 0 | I47: 0 | J47: 0 | K47: 0 | L47: 4 | M47: 0 | N47: 0 | O47: 13.5 | P47: 3.8 | Q47: 3.5 | R47: 0.1 | S47: 0 | T47: 0 | U47: 0
A48: Пром. | B48: Хлеб пшеничный | C48: 20 | D48: 1.52 | E48: 0.16 | F48: 9.84 | G48: 46.9 | H48: 0.02 | I48: 0.01 | J48: 0 | K48: 0 | L48: 0 | M48: 100 | N48: 19 | O48: 4 | P48: 3 | Q48: 13 | R48: 0.2 | S48: 0.64 | T48: 1.2 | U48: 2.9
A49: Пром. | B49: Хлеб ржаной | C49: 20 | D49: 1.3 | E49: 0.2 | F49: 6.7 | G49: 34.2 | H49: 0.04 | I49: 0.02 | J49: 0 | K49: 0 | L49: 0 | M49: 122 | N49: 49 | O49: 7 | P49: 9.4 | Q49: 31.6 | R49: 0.78 | S49: 0 | T49: 6.18 | U49: 0
B50: Итого за обед | C50: 550 | D50: =SUM(D44:D49) -> 18.52 | E50: =SUM(E44:E49) -> 19.36 | F50: 82.64 | G50: 583.6 | H50: 0.12 | I50: 0.08 | J50: 751.36 | K50: 0.09 | L50: 9.43 | M50: 464.59 | N50: 237.81 | O50: 163.55 | P50: 77.46 | Q50: 258.55 | R50: 4.13 | S50: 31.59 | T50: 14.71 | U50: 51.66
B51: Итого за день | C51: =C50+C42 -> 1003 | D51: =D50+D42 -> 24.36 | E51: 23.99 | F51: 129.42 | G51: 772.7 | H51: 0.21 | I51: 0.12 | J51: 751.56 | K51: 0.09 | L51: 20.43 | M51: 765.59 | N51: 329.81 | O51: 224.15 | P51: 117.06 | Q51: 355.75 | R51: 6.81 | S51: 32.23 | T51: 22.09 | U51: 54.56
A53: 3 день, 1 неделя
A54: № рецептуры | B54: Прием пищи, наименование блюда | C54: Масса | D54: Пищевые вещества | G54: Энергетическая ценность | H54: Витамины | M54: Минеральные вещества
D55: Белки | E55: Жиры | F55: Углеводы | H55: B1 | I55: B2 | J55: A | K55: D | L55: C | M55: Na | N55: K | O55: Ca | P55: Mg | Q55: P | R55: Fe | S55: I | T55: Se | U55: F
C56: г | D56: г | E56: г | F56: г | G56: ккал | H56: мг | I56: мг | J56: мкг рет.экв | K56: мкг | L56: мг | M56: мг | N56: мг | O56: мг | P56: мг | Q56: мг | R56: мг | S56: мкг | T56: мкг | U56: мкг
B57: Среда, 1 неделя
B58: Завтрак | C58: 7-10
A59: № Т/К 40 | B59: Салат картофельный с морковью и растительным маслом | C59: 60 | D59: 1.5 | E59: 4.3 | F59: 5.3 | G59: 66.4 | H59: 0 | I59: 0 | J59: 0.4 | K59: 0 | L59: 3.4 | M59: 0 | N59: 0 | O59: 14.9 | P59: 12.9 | Q59: 33.5 | R59: 0.7 | S59: 0 | T59: 0 | U59: 0
A60: № Т/К 62 | B60: Борщ | C60: 200 | D60: 2.2 | E60: 4.7 | F60: 12 | G60: 101.2 | H60: 0 | I60: 0 | J60: 0.2 | K60: 0 | L60: 9.2 | M60: 0 | N60: 0 | O60: 39.6 | P60: 25.6 | Q60: 52.5 | R60: 1.3 | S60: 0 | T60: 0 | U60: 0
A61: № Т/К 440 | B61: Напиток из сухофруктов | C61: 200 | D61: 0 | E61: 0 | F61: 14.6 | G61: 58.1 | H61: 0 | I61: 0 | J61: 0 | K61: 0 | L61: 0 | M61: 0 | N61: 0 | O61: 8.4 | P61: 1.8 | Q61: 0 | R61: 0 | S61: 0 | T61: 0 | U61: 0
A62: Пром. | B62: Хлеб пшеничный | C62: 20 | D62: 1.52 | E62: 0.16 | F62: 9.84 | G62: 46.9 | H62: 0.02 | I62: 0.01 | J62: 0 | K62: 0 | L62: 0 | M62: 100 | N62: 19 | O62: 4 | P62: 3 | Q62: 13 | R62: 0.2 | S62: 0.64 | T62: 1.2 | U62: 2.9
A63: Пром. | B63: Хлеб ржаной | C63: 20 | D63: 1.3 | E63: 0.2 | F63: 6.7 | G63: 34.2 | H63: 0.04 | I63: 0.02 | J63: 0 | K63: 0 | L63: 0 | M63: 122 | N63: 49 | O63: 7 | P63: 9.4 | Q63: 31.6 | R63: 0.78 | S63: 0 | T63: 6.18 | U63: 0
A64: 54-10В | B64: Булочка ванильная | C64: 60 | D64: 4.68 | E64: 4.03 | F64: 30.46 | G64: 177 | H64: 0.05 | I64: 0.02 | J64: 19.12 | K64: 0.15 | L64: 0 | M64: 241 | N64: 50 | O64: 18 | P64: 6 | Q64: 41 | R64: 0.5 | S64: 33.36 | T64: 3.1 | U64: 11.03
B65: Итого за завтрак | C65: =SUM(C59:C64) -> 560 | D65: =SUM(D59:D64) -> 11.2 | E65: =SUM(E59:E64) -> 13.39 | F65: 78.9 | G65: 483.8 | H65: 0.11 | I65: 0.05 | J65: 19.72 | K65: 0.15 | L65: 12.6 | M65: 463 | N65: 118 | O65: 91.9 | P65: 58.7 | Q65: 171.6 | R65: 3.48 | S65: 34 | T65: 10.48 | U65: 13.93
B66: Обед | C66: 7-10
A67: 54-13з-2020 | B67: Салат из свеклы отварной с растительным маслом | C67: 60 | D67: 0.8 | E67: 2.7 | F67: 4.6 | G67: 45.6 | H67: 0.01 | I67: 0.02 | J67: 0.68 | K67: 0 | L67: 2.28 | M67: 78.77 | N67: 136.27 | O67: 19.21 | P67: 10.95 | Q67: 21.51 | R67: 0.7 | S67: 11.99 | T67: 0.35 | U67: 11.4
A68: 54-1г-2020 | B68: Макароны отварные | C68: 150 | D68: 5.3 | E68: 4.9 | F68: 32.8 | G68: 196.8 | H68: 0.06 | I68: 0.02 | J68: 18.36 | K68: 0.09 | L68: 0 | M68: 149.04 | N68: 53.8 | O68: 105.83 | P68: 7.19 | Q68: 40.7 | R68: 0.73 | S68: 20.77 | T68: 0.06 | U68: 11.92
A69: №243 | B69: Сосиски говяжьи отварные, п/ф (2 шт) | C69: 100 | D69: 6.6 | E69: 10.35 | F69: 6.5 | G69: 202.15 | H69: 0 | I69: 0 | J69: 0.08 | K69: 0.01 | L69: 0 | M69: 0 | N69: 0 | O69: 7.44 | P69: 15.51 | Q69: 137.39 | R69: 1.74 | S69: 0 | T69: 0 | U69: 0
A70: 54-3гн-2020 | B70: Чай с лимоном и сахаром | C70: 207 | D70: 0.2 | E70: 0.1 | F70: 6.6 | G70: 27.9 | H70: 0 | I70: 0.01 | J70: 0.38 | K70: 0 | L70: 1.16 | M70: 1.26 | N70: 30.23 | O70: 67 | P70: 4.56 | Q70: 8.52 | R70: 0.77 | S70: 0.01 | T70: 0.02 | U70: 0.7
A71: Пром. | B71: Хлеб ржаной | C71: 20 | D71: 1.3 | E71: 0.2 | F71: 6.7 | G71: 34.2 | H71: 0.04 | I71: 0.02 | J71: 0 | K71: 0 | L71: 0 | M71: 122 | N71: 49 | O71: 7 | P71: 9.4 | Q71: 31.6 | R71: 0.78 | S71: 0 | T71: 6.18 | U71: 0
A72: Пром. | B72: Хлеб пшеничный | C72: 20 | D72: 1.52 | E72: 0.16 | F72: 9.84 | G72: 46.9 | H72: 0.02 | I72: 0.01 | J72: 0 | K72: 0 | L72: 0 | M72: 100 | N72: 19 | O72: 4 | P72: 3 | Q72: 13 | R72: 0.2 | S72: 0.64 | T72: 1.2 | U72: 2.9
B73: Итого за Завтрак | C73: =SUM(C67:C72) -> 557 | D73: 15.72 | E73: 18.41 | F73: 67.04 | G73: 553.55 | H73: 0.13 | I73: 0.08 | J73: 19.5 | K73: 0.1 | L73: 3.44 | M73: 451.07 | N73: 288.3 | O73: 210.48 | P73: 50.61 | Q73: 252.72 | R73: 4.92 | S73: 33.41 | T73: 7.81 | U73: 26.92
B74: Итого за день | C74: =C73+C65 -> 1117 | D74: 26.92 | E74: 31.8 | F74: 145.94 | G74: 1037.35 | H74: 0.24 | I74: 0.13 | J74: 39.22 | K74: 0.25 | L74: 16.04 | M74: 914.07 | N74: 406.3 | O74: 302.38 | P74: 109.31 | Q74: 424.32 | R74: 8.4 | S74: 67.41 | T74: 18.29 | U74: 40.85
A76: 4 день, 1 неделя
A77: № рецептуры | B77: Прием пищи, наименование блюда | C77: Масса | D77: Пищевые вещества | G77: Энергетическая ценность | H77: Витамины | M77: Минеральные вещества
D78: Белки | E78: Жиры | F78: Углеводы | H78: B1 | I78: B2 | J78: A | K78: D | L78: C | M78: Na | N78: K | O78: Ca | P78: Mg | Q78: P | R78: Fe | S78: I | T78: Se | U78: F
C79: г | D79: г | E79: г | F79: г | G79: ккал | H79: мг | I79: мг | J79: мкг рет.экв | K79: мкг | L79: мг | M79: мг | N79: мг | O79: мг | P79: мг | Q79: мг | R79: мг | S79: мкг | T79: мкг | U79: мкг
B80: Четверг, 1 неделя
B81: Завтрак | C81: 7-10
A82: № Т/К 50 | B82: Салат свеколка с маслом растительным | C82: 60 | D82: 1 | E82: 6 | F82: 9.7 | G82: 97.8 | H82: 0 | I82: 0 | J82: 0 | K82: 0 | L82: 2.1 | M82: 0 | N82: 0 | O82: 27.3 | P82: 16.4 | Q82: 31.7 | R82: 0.9 | S82: 0 | T82: 0 | U82: 0
A83: № Т/к | B83: Суп рисовый | C83: 200 | D83: 1.9 | E83: 1.5 | F83: 15.8 | G83: 84 | H83: 0.1 | I83: 0 | J83: 0.2 | K83: 0 | L83: 4.6 | M83: 0 | N83: 0 | O83: 17.4 | P83: 20.3 | Q83: 46.9 | R83: 0.8 | S83: 0 | T83: 0 | U83: 0
A84: 54-2гн-2020 | B84: Чай с сахаром | C84: 200 | D84: 0.2 | E84: 0 | F84: 6.4 | G84: 26.8 | H84: 0 | I84: 0.01 | J84: 0.3 | K84: 0 | L84: 0.04 | M84: 0.68 | N84: 20.76 | O84: 66.08 | P84: 3.83 | Q84: 7.18 | R84: 0.73 | S84: 0 | T84: 0 | U84: 0
A85: Пром. | B85: Хлеб пшеничный | C85: 20 | D85: 1.52 | E85: 0.16 | F85: 9.84 | G85: 46.9 | H85: 0.02 | I85: 0.01 | J85: 0 | K85: 0 | L85: 0 | M85: 100 | N85: 19 | O85: 4 | P85: 3 | Q85: 13 | R85: 0.2 | S85: 0.64 | T85: 1.2 | U85: 2.9
A86: Пром. | B86: Хлеб ржаной | C86: 20 | D86: 1.3 | E86: 0.2 | F86: 6.7 | G86: 34.2 | H86: 0.04 | I86: 0.02 | J86: 0 | K86: 0 | L86: 0 | M86: 122 | N86: 49 | O86: 7 | P86: 9.4 | Q86: 31.6 | R86: 0.78 | S86: 0 | T86: 6.18 | U86: 0
A87: Пром. | B87: Сушка простая | C87: 13 | D87: 1.42 | E87: 0.17 | F87: 8.94 | G87: 43 | H87: 0.03 | I87: 0.01 | J87: 0 | K87: 0 | L87: 0 | M87: 79 | N87: 24 | O87: 4 | P87: 6 | Q87: 16 | R87: 0.4 | S87: 0 | T87: 0 | U87: 0
B88: Итого за завтрак | C88: =SUM(C82:C87) -> 513.00 | D88: =SUM(D82:D87) -> 7.34 | E88: =SUM(E82:E87) -> 8.03 | F88: 57.38 | G88: 332.70 | H88: 0.19 | I88: 0.05 | J88: 0.50 | K88: 0.00 | L88: 6.74 | M88: 301.68 | N88: 112.76 | O88: 125.78 | P88: 58.93 | Q88: 146.38 | R88: 3.81 | S88: 0.64 | T88: 7.38 | U88: 2.90
B89: Обед | C89: 7-10
A90: 54-9з-2020 | B90: Салат из белокочанной капусты с морковью и яблоками с растительным маслом | C90: 60 | D90: 0.8 | E90: 6.1 | F90: 3.6 | G90: 72.5 | H90: 0.02 | I90: 0.02 | J90: 241.63 | K90: 0 | L90: 17.32 | M90: 87.51 | N90: 160.14 | O90: 23.5 | P90: 11.17 | Q90: 18.8 | R90: 0.56 | S90: 9.87 | T90: 0.15 | U90: 10.98
A91: 54-11г-2020 | B91: Картофельное пюре | C91: 150 | D91: 3.1 | E91: 5.3 | F91: 19.8 | G91: 139.4 | H91: 0.12 | I91: 0.11 | J91: 23.8 | K91: 0.09 | L91: 10.2 | M91: 161.78 | N91: 624.83 | O91: 39.49 | P91: 28.23 | Q91: 84.47 | R91: 1.03 | S91: 28.46 | T91: 0.78 | U91: 42.79
A92: № рец. 290 | B92: Птица тушеная в соусе | C92: 50/50 | D92: 8.65 | E92: 6.84 | F92: 3.5 | G92: 145 | H92: 0.1 | I92: 0 | J92: 0 | K92: 0 | L92: 1.5 | M92: 0 | N92: 0 | O92: 26.4 | P92: 16.6 | Q92: 115.3 | R92: 0.9 | S92: 0 | T92: 0 | U92: 0
A93: № Т/к 438 | B93: Напиток яблочный | C93: 200 | D93: 0.1 | E93: 0.1 | F93: 13.9 | G93: 57.8 | H93: 0 | I93: 0 | J93: 0 | K93: 0 | L93: 1 | M93: 0 | N93: 0 | O93: 12.3 | P93: 3.7 | Q93: 2.4 | R93: 0.5 | S93: 0 | T93: 0 | U93: 0
A94: Пром. | B94: Хлеб ржаной | C94: 20 | D94: 1.3 | E94: 0.2 | F94: 6.7 | G94: 34.2 | H94: 0.04 | I94: 0.02 | J94: 0 | K94: 0 | L94: 0 | M94: 122 | N94: 49 | O94: 7 | P94: 9.4 | Q94: 31.6 | R94: 0.78 | S94: 0 | T94: 6.18 | U94: 0
A95: Пром. | B95: Хлеб пшеничный | C95: 20 | D95: 1.52 | E95: 0.16 | F95: 9.84 | G95: 46.9 | H95: 0.02 | I95: 0.01 | J95: 0 | K95: 0 | L95: 0 | M95: 100 | N95: 19 | O95: 4 | P95: 3 | Q95: 13 | R95: 0.2 | S95: 0.64 | T95: 1.2 | U95: 2.9
A96: Пром. | B96: Фрукт (яблоко, банан, апельсин) | C96: 200 | D96: 3.25 | E96: 0.98 | F96: 25.1 | G96: 89.7 | H96: 0.07 | I96: 0.1 | J96: 30 | K96: 0 | L96: 10 | M96: 59 | N96: 722 | O96: 18 | P96: 91 | Q96: 61 | R96: 1.3 | S96: 0.12 | T96: 2.2 | U96: 5.5
B97: Итого за обед | C97: 750 | D97: =SUM(D90:D96) -> 18.72 | E97: =SUM(E90:E96) -> 19.68 | F97: 82.44 | G97: 585.5 | H97: 0.37 | I97: 0.26 | J97: 295.43 | K97: 0.09 | L97: 40.02 | M97: 530.29 | N97: 1574.97 | O97: 130.69 | P97: 163.1 | Q97: 326.57 | R97: 5.27 | S97: 39.09 | T97: 10.51 | U97: 62.17
B98: Итого за день | C98: =C97+C88 -> 1263 | D98: 26.06 | E98: 27.71 | F98: 139.82 | G98: 918.2 | H98: 0.56 | I98: 0.31 | J98: 295.93 | K98: 0.09 | L98: 46.76 | M98: 831.97 | N98: 1687.73 | O98: 256.47 | P98: 222.03 | Q98: 472.95 | R98: 9.08 | S98: 39.73 | T98: 17.89 | U98: 65.07
A100: 5 день, 1 неделя
A101: № рецептуры | B101: Прием пищи, наименование блюда | C101: Масса | D101: Пищевые вещества | G101: Энергетическая ценность | H101: Витамины | M101: Минеральные вещества
D102: Белки | E102: Жиры | F102: Углеводы | H102: B1 | I102: B2 | J102: A | K102: D | L102: C | M102: Na | N102: K | O102: Ca | P102: Mg | Q102: P | R102: Fe | S102: I | T102: Se | U102: F
C103: г | D103: г | E103: г | F103: г | G103: ккал | H103: мг | I103: мг | J103: мкг рет.экв | K103: мкг | L103: мг | M103: мг | N103: мг | O103: мг | P103: мг | Q103: мг | R103: мг | S103: мкг | T103: мкг | U103: мкг
B104: Пятница, 1 неделя
B105: Завтрак | C105: 7-10
A106: 54-6о | B106: Яйцо вареное (1 шт) | C106: 40 | D106: 3.28 | E106: 2.05 | F106: 0.25 | G106: 56.6 | H106: 0.02 | I106: 0.14 | J106: 62.4 | K106: 0.88 | L106: 0 | M106: 41 | N106: 46 | O106: 19 | P106: 4 | Q106: 67 | R106: 0.9 | S106: 8 | T106: 10.8 | U106: 22
A107: № Т/к №110 | B107: Бульон с лапшой домашней | C107: 200 | D107: 6.1 | E107: 2 | F107: 29.8 | G107: 160.2 | H107: 0.1 | I107: 0 | J107: 0.1 | K107: 0 | L107: 0 | M107: 0 | N107: 0 | O107: 26.7 | P107: 10.6 | Q107: 58 | R107: 0.7 | S107: 0 | T107: 0 | U107: 0
A108: 54-21гн-2020 | B108: Какао с молоком | C108: 200 | D108: 4.7 | E108: 3.5 | F108: 12.5 | G108: 100.4 | H108: 0.04 | I108: 0.16 | J108: 17.25 | K108: 0 | L108: 0.68 | M108: 49.95 | N108: 220.33 | O108: 167.68 | P108: 34.32 | Q108: 130.28 | R108: 1.09 | S108: 11.7 | T108: 2.29 | U108: 38.25
A109: Пром. | B109: Хлеб пшеничный | C109: 20 | D109: 1.52 | E109: 0.16 | F109: 9.84 | G109: 46.9 | H109: 0.02 | I109: 0.01 | J109: 0 | K109: 0 | L109: 0 | M109: 100 | N109: 19 | O109: 4 | P109: 3 | Q109: 13 | R109: 0.2 | S109: 0.64 | T109: 1.2 | U109: 2.9
A110: Пром. | B110: Хлеб ржаной | C110: 20 | D110: 1.3 | E110: 0.2 | F110: 6.7 | G110: 34.2 | H110: 0.04 | I110: 0.02 | J110: 0 | K110: 0 | L110: 0 | M110: 122 | N110: 49 | O110: 7 | P110: 9.4 | Q110: 31.6 | R110: 0.78 | S110: 0 | T110: 6.18 | U110: 0
B111: итого за завтрак | C111: =SUM(C106:C110) -> 480 | D111: =SUM(D106:D110) -> 16.9 | E111: 7.91 | F111: 59.09 | G111: 398.3 | H111: 0.22 | I111: 0.33 | J111: 79.75 | K111: 0.88 | L111: 0.68 | M111: 312.95 | N111: 334.33 | O111: 224.38 | P111: 61.32 | Q111: 299.88 | R111: 3.67 | S111: 20.34 | T111: 20.47 | U111: 63.15
B112: Обед | C112: 7-10
A113: 54-11з-2020 | B113: Салат из моркови с яблоками с растительным маслом | C113: 60 | D113: 0.5 | E113: 6.1 | F113: 4.3 | G113: 74.3 | H113: 0.03 | I113: 0.03 | J113: 732.9 | K113: 0 | L113: 3.63 | M113: 89.79 | N113: 123.26 | O113: 13.5 | P113: 15.57 | Q113: 22.38 | R113: 0.66 | S113: 10.19 | T113: 0.09 | U113: 21.57
A114: 54-6г-2020 | B114: Плов из говядины | C114: 160/40 | D114: 11.09 | E114: 9.35 | F114: 23.94 | G114: 234 | H114: 0.07 | I114: 0.12 | J114: 261.6 | K114: 0.1 | L114: 0.08 | M114: 276 | N114: 267 | O114: 117 | P114: 44 | Q114: 194 | R114: 2.2 | S114: 38.67 | T114: 7.3 | U114: 81.72
A115: 54-4гн-2020 | B115: Компот из кураги | C115: 200 | D115: 0.98 | E115: 0.05 | F115: 15.64 | G115: 66.9 | H115: 0.01 | I115: 0.03 | J115: 69.96 | K115: 0 | L115: 0 | M115: 3 | N115: 285 | O115: 90 | P115: 18 | Q115: 25 | R115: 0.6 | S115: 0 | T115: 0 | U115: 0
A116: Пром. | B116: Хлеб ржаной | C116: 20 | D116: 1.3 | E116: 0.2 | F116: 6.7 | G116: 34.2 | H116: 0.04 | I116: 0.02 | J116: 0 | K116: 0 | L116: 0 | M116: 122 | N116: 49 | O116: 7 | P116: 9.4 | Q116: 31.6 | R116: 0.78 | S116: 0 | T116: 6.18 | U116: 0
A117: Пром. | B117: Булочка ванильная | C117: 60 | D117: 4.68 | E117: 4.03 | F117: 30.46 | G117: 177 | H117: 0.05 | I117: 0.02 | J117: 19.12 | K117: 0.15 | L117: 0 | M117: 241 | N117: 50 | O117: 18 | P117: 6 | Q117: 41 | R117: 0.5 | S117: 33.36 | T117: 3.1 | U117: 11.03
B118: Итого за обед | C118: 540 | D118: =SUM(D113:D117) -> 18.55 | E118: =SUM(E113:E117) -> 19.73 | F118: 81.04 | G118: 586.4 | H118: 0.2 | I118: 0.22 | J118: 1083.58 | K118: 0.25 | L118: 3.71 | M118: 731.79 | N118: 774.26 | O118: 245.5 | P118: 92.97 | Q118: 313.98 | R118: 4.74 | S118: 82.22 | T118: 16.67 | U118: 114.32
B119: Итого за день | C119: =C118+C111 -> 1020 | D119: =D118+D111 -> 35.45 | E119: 27.64 | F119: 140.13 | G119: 984.7 | H119: 0.42 | I119: 0.55 | J119: 1163.33 | K119: 1.13 | L119: 4.39 | M119: 1044.74 | N119: 1108.59 | O119: 469.88 | P119: 154.29 | Q119: 613.86 | R119: 8.41 | S119: 102.56 | T119: 37.14 | U119: 177.47
A121: 6 день, 1 неделя
A122: № рецептуры | B122: Прием пищи, наименование блюда | C122: Масса | D122: Пищевые вещества | G122: Энергетическая ценность | H122: Витамины | M122: Минеральные вещества
D123: Белки | E123: Жиры | F123: Углеводы | H123: B1 | I123: B2 | J123: A | K123: D | L123: C | M123: Na | N123: K | O123: Ca | P123: Mg | Q123: P | R123: Fe | S123: I | T123: Se | U123: F
C124: г | D124: г | E124: г | F124: г | G124: ккал | H124: мг | I124: мг | J124: мкг рет.экв | K124: мкг | L124: мг | M124: мг | N124: мг | O124: мг | P124: мг | Q124: мг | R124: мг | S124: мкг | T124: мкг | U124: мкг
B125: Суббота, 1 неделя
B126: Горячий завтрак | C126: 7-10
A127: 54-16з-2020 | B127: Винегрет с растительным маслом | C127: 60 | D127: 0.7 | E127: 5.4 | F127: 4 | G127: 67.1 | H127: 0.02 | I127: 0.02 | J127: 72.89 | K127: 0 | L127: 2.26 | M127: 200.99 | N127: 127.85 | O127: 12.1 | P127: 9.66 | Q127: 21.4 | R127: 0.41 | S127: 7.86 | T127: 0.13 | U127: 11.85
A128: 54-1т-2020 | B128: Запеканка из творога | C128: 150 | D128: 6.98 | E128: 8.4 | F128: 19.87 | G128: 167.3 | H128: 0.06 | I128: 0.3 | J128: 51.11 | K128: 0.16 | L128: 0 | M128: 181 | N128: 159 | O128: 223 | P128: 32 | Q128: 291 | R128: 0.8 | S128: 28.82 | T128: 39 | U128: 49.63
A129: Пром. | B129: Молоко сгущенное с сахаром | C129: 20 | D129: 1.44 | E129: 1.7 | F129: 11.1 | G129: 65.5 | H129: 0.01 | I129: 0.06 | J129: 5.64 | K129: 0 | L129: 0 | M129: 20 | N129: 61 | O129: 54 | P129: 6 | Q129: 38 | R129: 0 | S129: 1.4 | T129: 0.5 | U129: 7
A130: 54-3гн-2020 | B130: Чай с лимоном и сахаром | C130: 207 | D130: 0.2 | E130: 0.1 | F130: 6.6 | G130: 27.9 | H130: 0 | I130: 0.01 | J130: 0.38 | K130: 0 | L130: 1.16 | M130: 1.26 | N130: 30.23 | O130: 67 | P130: 4.56 | Q130: 8.52 | R130: 0.77 | S130: 0.01 | T130: 0.02 | U130: 0.7
A131: Пром. | B131: Хлеб пшеничный | C131: 20 | D131: 1.52 | E131: 0.16 | F131: 9.84 | G131: 46.9 | H131: 0.02 | I131: 0.01 | J131: 0 | K131: 0 | L131: 0 | M131: 100 | N131: 19 | O131: 4 | P131: 3 | Q131: 13 | R131: 0.2 | S131: 0.64 | T131: 1.2 | U131: 2.9
A132: Пром. | B132: Хлеб ржаной | C132: 20 | D132: 1.3 | E132: 0.2 | F132: 6.7 | G132: 34.2 | H132: 0.04 | I132: 0.02 | J132: 0 | K132: 0 | L132: 0 | M132: 122 | N132: 49 | O132: 7 | P132: 9.4 | Q132: 31.6 | R132: 0.78 | S132: 0 | T132: 6.18 | U132: 0
A133: Пром. | B133: Сушка простая | C133: 30 | D133: 3.27 | E133: 0.39 | F133: 20.64 | G133: 99.1 | H133: 0.05 | I133: 0.02 | J133: 0 | K133: 0 | L133: 0 | M133: 138 | N133: 46 | O133: 8 | P133: 12 | Q133: 32 | R133: 0.8 | S133: 0 | T133: 0 | U133: 0
B134: Итого за Завтрак | C134: =SUM(C127:C133) -> 507 | D134: =SUM(D127:D133) -> 15.41 | E134: =SUM(E127:E133) -> 16.35 | F134: 78.75 | G134: 508 | H134: 0.2 | I134: 0.44 | J134: 130.02 | K134: 0.16 | L134: 3.42 | M134: 763.25 | N134: 492.08 | O134: 375.1 | P134: 76.62 | Q134: 435.52 | R134: 3.76 | S134: 38.73 | T134: 47.03 | U134: 72.08
B135: Итого за день | C135: =C134 -> 507 | D135: =D134 -> 15.41 | E135: =E134 -> 16.35 | F135: 78.75 | G135: 508 | H135: 0.2 | I135: 0.44 | J135: 130.02 | K135: 0.16 | L135: 3.42 | M135: 763.25 | N135: 492.08 | O135: 375.1 | P135: 76.62 | Q135: 435.52 | R135: 3.76 | S135: 38.73 | T135: 47.03 | U135: 72.08
A137: 7 день, 2 неделя
A138: № рецептуры | B138: Прием пищи, наименование блюда | C138: Масса | D138: Пищевые вещества | G138: Энергетическая ценность | H138: Витамины | M138: Минеральные вещества
D139: Белки | E139: Жиры | F139: Углеводы | H139: B1 | I139: B2 | J139: A | K139: D | L139: C | M139: Na | N139: K | O139: Ca | P139: Mg | Q139: P | R139: Fe | S139: I | T139: Se | U139: F
C140: г | D140: г | E140: г | F140: г | G140: ккал | H140: мг | I140: мг | J140: мкг рет.экв | K140: мкг | L140: мг | M140: мг | N140: мг | O140: мг | P140: мг | Q140: мг | R140: мг | S140: мкг | T140: мкг | U140: мкг
B141: Понедельник, 2 неделя
B142: Завтрак | C142: 7-10
A143: № Т/К 40 | B143: Салат картофельный с морковью и растительным маслом | C143: 60 | D143: 1.5 | E143: 4.3 | F143: 5.3 | G143: 66.4 | H143: 0 | I143: 0 | J143: 0.4 | K143: 0 | L143: 3.4 | M143: 0 | N143: 0 | O143: 14.9 | P143: 12.9 | Q143: 33.5 | R143: 0.7 | S143: 0 | T143: 0 | U143: 0
A144: 54-1г-2020 | B144: Макароны отварные | C144: 150 | D144: 5.3 | E144: 4.9 | F144: 32.8 | G144: 196.8 | H144: 0.06 | I144: 0.02 | J144: 18.36 | K144: 0.09 | L144: 0 | M144: 149.04 | N144: 53.8 | O144: 105.83 | P144: 7.19 | Q144: 40.7 | R144: 0.73 | S144: 20.77 | T144: 0.06 | U144: 11.92
A145: №243 | B145: Сосиски говяжьи отварные, п/ф (2 шт) | C145: 100 | D145: 6.6 | E145: 10.35 | F145: 6.5 | G145: 202.15 | H145: 0 | I145: 0 | J145: 0.08 | K145: 0.01 | L145: 0 | M145: 0 | N145: 0 | O145: 7.44 | P145: 15.51 | Q145: 137.39 | R145: 1.74 | S145: 0 | T145: 0 | U145: 0
A146: 54-2гн-2020 | B146: Чай -заварка | C146: 200 | D146: 0.2 | E146: 0 | F146: 6.4 | G146: 26.8 | H146: 0 | I146: 0.01 | J146: 0.3 | K146: 0 | L146: 0.04 | M146: 0.68 | N146: 20.76 | O146: 66.08 | P146: 3.83 | Q146: 7.18 | R146: 0.73 | S146: 0 | T146: 0 | U146: 0
A147: Пром. | B147: Хлеб ржаной | C147: 20 | D147: 1.3 | E147: 0.2 | F147: 6.7 | G147: 34.2 | H147: 0.04 | I147: 0.02 | J147: 0 | K147: 0 | L147: 0 | M147: 122 | N147: 49 | O147: 7 | P147: 9.4 | Q147: 31.6 | R147: 0.78 | S147: 0 | T147: 6.18 | U147: 0
A148: Пром. | B148: Хлеб пшеничный | C148: 20 | D148: 1.52 | E148: 0.16 | F148: 9.84 | G148: 46.9 | H148: 0.02 | I148: 0.01 | J148: 0 | K148: 0 | L148: 0 | M148: 100 | N148: 19 | O148: 4 | P148: 3 | Q148: 13 | R148: 0.2 | S148: 0.64 | T148: 1.2 | U148: 2.9
B149: Итого за завтрак | C149: =C143+C144+C145+C146+C147+C148 -> 550 | D149: =D143+D144+D145+D146+D147+D148 -> 16.42 | E149: 19.91 | F149: 67.54 | G149: 573.25 | H149: 0.12 | I149: 0.06 | J149: 19.14 | K149: 0.1 | L149: 3.44 | M149: 371.72 | N149: 142.56 | O149: 205.25 | P149: 51.83 | Q149: 263.37 | R149: 4.88 | S149: 21.41 | T149: 7.44 | U149: 14.82
B150: Обед | C150: 7-10
A151: №Т/К 41 | B151: Салат из моркови с сахаром и растительным маслом | C151: 60 | D151: 0.5 | E151: 6.1 | F151: 4.3 | G151: 74.3 | H151: 0.03 | I151: 0.03 | J151: 732.9 | K151: 0 | L151: 3.63 | M151: 89.79 | N151: 123.26 | O151: 13.5 | P151: 15.57 | Q151: 22.38 | R151: 0.66 | S151: 10.19 | T151: 0.09 | U151: 21.57
A152: 62 | B152: Борщ | C152: 200 | D152: 10.77 | E152: 7.76 | F152: 33.2 | G152: 206 | H152: 0.1 | I152: 0 | J152: 0.2 | K152: 0 | L152: 10.7 | M152: 0 | N152: 0 | O152: 43.5 | P152: 26.9 | Q152: 57.4 | R152: 1.4 | S152: 0 | T152: 0 | U152: 0
A153: 54-2гн-2020 | B153: Чай с сахаром | C153: 200 | D153: 0.2 | E153: 0 | F153: 6.4 | G153: 26.8 | H153: 0 | I153: 0.01 | J153: 0.3 | K153: 0 | L153: 0.04 | M153: 0.68 | N153: 20.76 | O153: 66.08 | P153: 3.83 | Q153: 7.18 | R153: 0.73 | S153: 0 | T153: 0 | U153: 0
A154: т/к №410 | B154: Треугольник П/Ф | C154: 70 | D154: 5.7 | E154: 5 | F154: 29.8 | G154: 221.7 | H154: 0.1 | I154: 0 | J154: 0 | K154: 0 | L154: 1.5 | M154: 0 | N154: 0 | O154: 26.8 | P154: 25.7 | Q154: 100.5 | R154: 1.5 | S154: 0 | T154: 0 | U154: 0
A155: Пром. | B155: Хлеб ржаной | C155: 20 | D155: 1.3 | E155: 0.2 | F155: 6.7 | G155: 34.2 | H155: 0.04 | I155: 0.02 | J155: 0 | K155: 0 | L155: 0 | M155: 122 | N155: 49 | O155: 7 | P155: 9.4 | Q155: 31.6 | R155: 0.78 | S155: 0 | T155: 6.18 | U155: 0
B156: Итого за Обед | C156: =SUM(C151:C155) -> 550 | D156: =SUM(D151:D155) -> 18.47 | E156: =SUM(E151:E155) -> 19.06 | F156: 80.4 | G156: 563 | H156: 0.27 | I156: 0.06 | J156: 733.4 | K156: 0 | L156: 15.87 | M156: 212.47 | N156: 193.02 | O156: 156.88 | P156: 81.4 | Q156: 219.06 | R156: 5.07 | S156: 10.19 | T156: 6.27 | U156: 21.57
B157: Итого за день | C157: =C156+C149 -> 1100 | D157: =D156+D149 -> 34.89 | E157: 38.97 | F157: 147.94 | G157: 1136.25 | H157: 0.39 | I157: 0.12 | J157: 752.54 | K157: 0.1 | L157: 19.31 | M157: 584.19 | N157: 335.58 | O157: 362.13 | P157: 133.23 | Q157: 482.43 | R157: 9.95 | S157: 31.6 | T157: 13.71 | U157: 36.39
A159: 8 день, 2 неделя
A160: № рецептуры | B160: Прием пищи, наименование блюда | C160: Масса | D160: Пищевые вещества | G160: Энергетическая ценность | H160: Витамины | M160: Минеральные вещества
D161: Белки | E161: Жиры | F161: Углеводы | H161: B1 | I161: B2 | J161: A | K161: D | L161: C | M161: Na | N161: K | O161: Ca | P161: Mg | Q161: P | R161: Fe | S161: I | T161: Se | U161: F
C162: г | D162: г | E162: г | F162: г | G162: ккал | H162: мг | I162: мг | J162: мкг рет.экв | K162: мкг | L162: мг | M162: мг | N162: мг | O162: мг | P162: мг | Q162: мг | R162: мг | S162: мкг | T162: мкг | U162: мкг
B163: Вторник, 2 неделя
B164: Завтрак | C164: 7-10
A165: № Т/к 15 | B165: Морковь отварная порциями | C165: 60 | D165: 0.8 | E165: 0.1 | F165: 4.1 | G165: 21 | H165: 0 | I165: 0 | J165: 1.5 | K165: 0 | L165: 3 | M165: 0 | N165: 0 | O165: 30.6 | P165: 22.8 | Q165: 33 | R165: 0.6 | S165: 0 | T165: 0 | U165: 0
A166: № Т/к №110 | B166: Бульон с лапшой домашней | C166: 200 | D166: 6.1 | E166: 2 | F166: 29.8 | G166: 160.2 | H166: 0.1 | I166: 0 | J166: 0.1 | K166: 0 | L166: 0 | M166: 0 | N166: 0 | O166: 26.7 | P166: 10.6 | Q166: 58 | R166: 0.7 | S166: 0 | T166: 0 | U166: 0
A167: № Т/к 438 | B167: Напиток яблочный | C167: 200 | D167: 0.1 | E167: 0.1 | F167: 13.9 | G167: 57.8 | H167: 0 | I167: 0 | J167: 0 | K167: 0 | L167: 1 | M167: 0 | N167: 0 | O167: 12.3 | P167: 3.7 | Q167: 2.4 | R167: 0.5 | S167: 0 | T167: 0 | U167: 0
A168: Пром. | B168: Хлеб пшеничный | C168: 20 | D168: 1.52 | E168: 0.16 | F168: 9.84 | G168: 46.9 | H168: 0.02 | I168: 0.01 | J168: 0 | K168: 0 | L168: 0 | M168: 100 | N168: 19 | O168: 4 | P168: 3 | Q168: 13 | R168: 0.2 | S168: 0.64 | T168: 1.2 | U168: 2.9
A169: Пром. | B169: Хлеб ржаной | C169: 20 | D169: 1.3 | E169: 0.2 | F169: 6.7 | G169: 34.2 | H169: 0.04 | I169: 0.02 | J169: 0 | K169: 0 | L169: 0 | M169: 122 | N169: 49 | O169: 7 | P169: 9.4 | Q169: 31.6 | R169: 0.78 | S169: 0 | T169: 6.18 | U169: 0
B170: Итого за завтрак | C170: =C165+C166+C167+C168+C169 -> 500 | D170: =D165+D166+D167+D168+D169 -> 9.82 | E170: =E165+E166+E167+E168+E169 -> 2.56 | F170: 64.34 | G170: 320.1 | H170: 0.16 | I170: 0.03 | J170: 1.6 | K170: 0 | L170: 4 | M170: 222 | N170: 68 | O170: 80.6 | P170: 49.5 | Q170: 138 | R170: 2.78 | S170: 0.64 | T170: 7.38 | U170: 2.9
B171: Обед | C171: 7-10
A172: 54-13з-2020 | B172: Салат из свеклы отварной с растительным маслом | C172: 60 | D172: 0.8 | E172: 2.7 | F172: 4.6 | G172: 45.6 | H172: 0.01 | I172: 0.02 | J172: 0.68 | K172: 0 | L172: 2.28 | M172: 78.77 | N172: 136.27 | O172: 19.21 | P172: 10.95 | Q172: 21.51 | R172: 0.7 | S172: 11.99 | T172: 0.35 | U172: 11.4
A173: 54-12м-2020 | B173: Плов с курицей | C173: 150/50 | D173: 14.7 | E173: 15.98 | F173: 33.1 | G173: 273.2 | H173: 0.07 | I173: 0.06 | J173: 144.87 | K173: 0 | L173: 2.08 | M173: 272.9 | N173: 287.76 | O173: 72.64 | P173: 78.85 | Q173: 174.89 | R173: 1.53 | S173: 37.41 | T173: 19.63 | U173: 118.1
A174: 54-3гн-2020 | B174: Чай с лимоном и сахаром | C174: 207 | D174: 0.2 | E174: 0.1 | F174: 6.6 | G174: 27.9 | H174: 0 | I174: 0.01 | J174: 0.38 | K174: 0 | L174: 1.16 | M174: 1.26 | N174: 30.23 | O174: 67 | P174: 4.56 | Q174: 8.52 | R174: 0.77 | S174: 0.01 | T174: 0.02 | U174: 0.7
A175: Пром. | B175: Хлеб пшеничный | C175: 20 | D175: 1.52 | E175: 0.16 | F175: 9.84 | G175: 46.9 | H175: 0.02 | I175: 0.01 | J175: 0 | K175: 0 | L175: 0 | M175: 100 | N175: 19 | O175: 4 | P175: 3 | Q175: 13 | R175: 0.2 | S175: 0.64 | T175: 1.2 | U175: 2.9
A176: Пром. | B176: Хлеб ржаной | C176: 20 | D176: 1.3 | E176: 0.2 | F176: 6.7 | G176: 34.2 | H176: 0.04 | I176: 0.02 | J176: 0 | K176: 0 | L176: 0 | M176: 122 | N176: 49 | O176: 7 | P176: 9.4 | Q176: 31.6 | R176: 0.78 | S176: 0 | T176: 6.18 | U176: 0
A177: Пром. | B177: Фрукт (яблоко, банан, апельсин) | C177: 145 | D177: 0.6 | E177: 0.6 | F177: 14.7 | G177: 66.6 | H177: 0.04 | I177: 0.03 | J177: 7.5 | K177: 0 | L177: 15 | M177: 39 | N177: 417 | O177: 24 | P177: 14 | Q177: 17 | R177: 3.3 | S177: 3 | T177: 0.4 | U177: 12
B178: Итого за обед | C178: 652 | D178: =SUM(D172:D177) -> 19.12 | E178: =SUM(E172:E177) -> 19.74 | F178: 75.54 | G178: 494.4 | H178: 0.18 | I178: 0.15 | J178: 153.43 | K178: 0 | L178: 20.52 | M178: 613.93 | N178: 939.26 | O178: 193.85 | P178: 120.76 | Q178: 266.52 | R178: 7.28 | S178: 53.05 | T178: 27.78 | U178: 145.1
B179: Итого за день | C179: =C178+C170 -> 1152 | D179: =D178+D170 -> 28.94 | E179: 22.3 | F179: 139.88 | G179: 814.5 | H179: 0.34 | I179: 0.18 | J179: 155.03 | K179: 0 | L179: 24.52 | M179: 835.93 | N179: 1007.26 | O179: 274.45 | P179: 170.26 | Q179: 404.52 | R179: 10.06 | S179: 53.69 | T179: 35.16 | U179: 148
A181: 9 день, 2 неделя
A182: № рецептуры | B182: Прием пищи, наименование блюда | C182: Масса | D182: Пищевые вещества | G182: Энергетическая ценность | H182: Витамины | M182: Минеральные вещества
D183: Белки | E183: Жиры | F183: Углеводы | H183: B1 | I183: B2 | J183: A | K183: D | L183: C | M183: Na | N183: K | O183: Ca | P183: Mg | Q183: P | R183: Fe | S183: I | T183: Se | U183: F
C184: г | D184: г | E184: г | F184: г | G184: ккал | H184: мг | I184: мг | J184: мкг рет.экв | K184: мкг | L184: мг | M184: мг | N184: мг | O184: мг | P184: мг | Q184: мг | R184: мг | S184: мкг | T184: мкг | U184: мкг
B185: Среда, 2 неделя
B186: Завтрак | C186: 7-10
A187: Пром. | B187: Сушка простая | C187: 13 | D187: 1.42 | E187: 0.17 | F187: 8.94 | G187: 43 | H187: 0.03 | I187: 0.01 | J187: 0 | K187: 0 | L187: 0 | M187: 79 | N187: 24 | O187: 4 | P187: 6 | Q187: 16 | R187: 0.4 | S187: 0 | T187: 0 | U187: 0
A188: № Т/к 67 | B188: Щи из свежей капусты с картофелем | C188: 200 | D188: 1.5 | E188: 4 | F188: 7.4 | G188: 7.2 | H188: 0 | I188: 0 | J188: 0.2 | K188: 0 | L188: 10 | M188: 0 | N188: 0 | O188: 33.3 | P188: 17.5 | Q188: 34.2 | R188: 0.8 | S188: 0 | T188: 0 | U188: 0
A189: № Т/К 440 | B189: Напиток из сухофруктов | C189: 200 | D189: 0 | E189: 0 | F189: 14.6 | G189: 58.1 | H189: 0 | I189: 0 | J189: 0 | K189: 0 | L189: 0 | M189: 0 | N189: 0 | O189: 8.4 | P189: 1.8 | Q189: 0 | R189: 0 | S189: 0 | T189: 0 | U189: 0
A190: Пром. | B190: Хлеб пшеничный | C190: 20 | D190: 1.52 | E190: 0.16 | F190: 9.84 | G190: 46.9 | H190: 0.02 | I190: 0.01 | J190: 0 | K190: 0 | L190: 0 | M190: 100 | N190: 19 | O190: 4 | P190: 3 | Q190: 13 | R190: 0.2 | S190: 0.64 | T190: 1.2 | U190: 2.9
A191: Пром. | B191: Хлеб ржаной | C191: 20 | D191: 1.3 | E191: 0.2 | F191: 6.7 | G191: 34.2 | H191: 0.04 | I191: 0.02 | J191: 0 | K191: 0 | L191: 0 | M191: 122 | N191: 49 | O191: 7 | P191: 9.4 | Q191: 31.6 | R191: 0.78 | S191: 0 | T191: 6.18 | U191: 0
B192: Итого за завтрак | C192: =SUM(C187:C191) -> 453 | D192: =SUM(D187:D191) -> 5.74 | E192: 4.53 | F192: 47.48 | G192: 189.4 | H192: 0.09 | I192: 0.04 | J192: 0.2 | K192: 0 | L192: 10 | M192: 301 | N192: 92 | O192: 56.7 | P192: 37.7 | Q192: 94.8 | R192: 2.18 | S192: 0.64 | T192: 7.38 | U192: 2.9
B193: Обед | C193: 7-10
A194: 54-16з-2020 | B194: Винегрет с растительным маслом | C194: 60 | D194: 0.7 | E194: 5.4 | F194: 4 | G194: 67.1 | H194: 0.02 | I194: 0.02 | J194: 72.89 | K194: 0 | L194: 2.26 | M194: 200.99 | N194: 127.85 | O194: 12.1 | P194: 9.66 | Q194: 21.4 | R194: 0.41 | S194: 7.86 | T194: 0.13 | U194: 11.85
A195: 54-11г-2020 | B195: Картофельное пюре | C195: 150 | D195: 3.1 | E195: 5.3 | F195: 19.8 | G195: 139.4 | H195: 0.12 | I195: 0.11 | J195: 23.8 | K195: 0.09 | L195: 10.2 | M195: 161.78 | N195: 624.83 | O195: 39.49 | P195: 28.23 | Q195: 84.47 | R195: 1.03 | S195: 28.46 | T195: 0.78 | U195: 42.79
A196: 54-7р-2020 | B196: Рыба припущенная в молоко | C196: 70/30 | D196: 9.06 | E196: 4.52 | F196: 2.89 | G196: 101.6 | H196: 0.08 | I196: 0.11 | J196: 9.02 | K196: 0.16 | L196: 1 | M196: 111 | N196: 347 | O196: 68 | P196: 44 | Q196: 202 | R196: 0.7 | S196: 133.48 | T196: 11.9 | U196: 572.6
A197: №Т/К 436 | B197: Напиток апельсиновый | C197: 200 | D197: 0.2 | E197: 0 | F197: 13 | G197: 53.5 | H197: 0 | I197: 0 | J197: 0 | K197: 0 | L197: 4 | M197: 0 | N197: 0 | O197: 13.5 | P197: 3.8 | Q197: 3.5 | R197: 0.1 | S197: 0 | T197: 0 | U197: 0
A198: Пром. | B198: Булочка ванильная | C198: 60 | D198: 4.68 | E198: 4.03 | F198: 30.46 | G198: 177 | H198: 0.05 | I198: 0.02 | J198: 19.12 | K198: 0.15 | L198: 0 | M198: 241 | N198: 50 | O198: 18 | P198: 6 | Q198: 41 | R198: 0.5 | S198: 33.36 | T198: 3.1 | U198: 11.03
A199: Пром. | B199: Хлеб ржаной | C199: 20 | D199: 1.3 | E199: 0.2 | F199: 6.7 | G199: 34.2 | H199: 0.04 | I199: 0.02 | J199: 0 | K199: 0 | L199: 0 | M199: 122 | N199: 49 | O199: 7 | P199: 9.4 | Q199: 31.6 | R199: 0.78 | S199: 0 | T199: 6.18 | U199: 0
B200: Итого за обед | C200: 590 | D200: =D194+D195+D196+D197+D198+D199 -> 19.04 | E200: =E194+E195+E196+E197+E198+E199 -> 19.45 | F200: =F194+F195+F196+F197+F198+F199 -> 76.85 | G200: =G194+G195+G196+G197+G198+G199 -> 572.8 | H200: =H194+H195+H196+H197+H198+H199 -> 0.31 | I200: 0.28 | J200: 124.83 | K200: 0.4 | L200: 17.46 | M200: 836.77 | N200: 1198.68 | O200: 158.09 | P200: 101.09 | Q200: 383.97 | R200: 3.52 | S200: 203.16 | T200: 22.09 | U200: 638.27
B201: Итого за день | C201: =C200+C192 -> 1043 | D201: =D200+D192 -> 24.78 | E201: 23.98 | F201: 124.33 | G201: 762.2 | H201: 0.4 | I201: 0.32 | J201: 125.03 | K201: 0.4 | L201: 27.46 | M201: 1137.77 | N201: 1290.68 | O201: 214.79 | P201: 138.79 | Q201: 478.77 | R201: 5.7 | S201: 203.8 | T201: 29.47 | U201: 641.17
A203: 10 день, 2 неделя
A204: № рецептуры | B204: Прием пищи, наименование блюда | C204: Масса | D204: Пищевые вещества | G204: Энергетическая ценность | H204: Витамины | M204: Минеральные вещества
D205: Белки | E205: Жиры | F205: Углеводы | H205: B1 | I205: B2 | J205: A | K205: D | L205: C | M205: Na | N205: K | O205: Ca | P205: Mg | Q205: P | R205: Fe | S205: I | T205: Se | U205: F
C206: г | D206: г | E206: г | F206: г | G206: ккал | H206: мг | I206: мг | J206: мкг рет.экв | K206: мкг | L206: мг | M206: мг | N206: мг | O206: мг | P206: мг | Q206: мг | R206: мг | S206: мкг | T206: мкг | U206: мкг
B207: Четверг, 2 неделя
B208: Завтрак | C208: 7-10
A209: № Т/К 50 | B209: Салат свеколка с маслом растительным | C209: 60 | D209: 1 | E209: 6 | F209: 9.7 | G209: 97.8 | H209: 0 | I209: 0 | J209: 0 | K209: 0 | L209: 2.1 | M209: 0 | N209: 0 | O209: 27.3 | P209: 16.4 | Q209: 31.7 | R209: 0.9 | S209: 0 | T209: 0 | U209: 0
A210: № Т/к100 | B210: Суп картофельный с вермишелью | C210: 200 | D210: 2.3 | E210: 2.2 | F210: 16.2 | G210: 94.4 | H210: 0.1 | I210: 0 | J210: 0.2 | K210: 0 | L210: 0 | M210: 0 | N210: 0 | O210: 19.2 | P210: 18.7 | Q210: 46.1 | R210: 0.9 | S210: 0 | T210: 0 | U210: 0
A211: 54-3гн-2020 | B211: Чай с лимоном и сахаром | C211: 207 | D211: 0.2 | E211: 0.1 | F211: 6.6 | G211: 27.9 | H211: 0 | I211: 0.01 | J211: 0.38 | K211: 0 | L211: 1.16 | M211: 1.26 | N211: 30.23 | O211: 67 | P211: 4.56 | Q211: 8.52 | R211: 0.77 | S211: 0.01 | T211: 0.02 | U211: 0.7
A212: Пром. | B212: Хлеб пшеничный | C212: 20 | D212: 1.52 | E212: 0.16 | F212: 9.84 | G212: 46.9 | H212: 0.02 | I212: 0.01 | J212: 0 | K212: 0 | L212: 0 | M212: 100 | N212: 19 | O212: 4 | P212: 3 | Q212: 13 | R212: 0.2 | S212: 0.64 | T212: 1.2 | U212: 2.9
A213: Пром. | B213: Хлеб ржаной | C213: 20 | D213: 1.3 | E213: 0.2 | F213: 6.7 | G213: 34.2 | H213: 0.04 | I213: 0.02 | J213: 0 | K213: 0 | L213: 0 | M213: 122 | N213: 49 | O213: 7 | P213: 9.4 | Q213: 31.6 | R213: 0.78 | S213: 0 | T213: 6.18 | U213: 0
... 54 more rows
